[Event "Klubbmästerskap 2025 Tisdag"]
[Site "Linköping, Sweden"]
[Date "2025.02.11"]
[Round "4.1"]
[White "Olsson, Simon"]
[Black "Nyberg, Peter"]
[Result "1/2-1/2"]
[TimeControl "90 min + 30 sec/move"]
[WhiteElo "2075"]
[BlackElo "1972"]

1. d4 {[%clk 01:30:58]} {[%emt 00:00:01]} Nf6 {[%clk 01:30:47]} {[%emt
00:00:13]} 2. c4 {[%clk 01:31:22]} {[%emt 00:00:06]} g6 {[%clk 01:30:52]}
{[%emt 00:00:24]} 3. h4 {[%clk 01:31:43]} {[%emt 00:00:10]} Bg7 {[%clk
01:31:10]} {[%emt 00:00:12]} 4. Nc3 {[%clk 01:31:24]} {[%emt 00:00:50]} d6
{[%clk 01:31:16]} {[%emt 00:00:23]} 5. e4 {[%clk 01:31:23]} {[%emt 00:00:32]}
Nc6 {[%clk 01:31:26]} {[%emt 00:00:20]} 6. d5 {[%clk 01:19:07]} {[%emt
00:12:46]} Ne5 {[%clk 01:31:15]} {[%emt 00:00:41]} 7. Be2 {[%clk 01:19:24]}
{[%emt 00:00:13]} h5 {[%clk 01:26:20]} {[%emt 00:05:25]} 8. Bf4 {[%clk
01:13:39]} {[%emt 00:06:15]} c6 {[%clk 01:23:10]} {[%emt 00:03:39]} 9. Bxe5
{[%clk 01:07:45]} {[%emt 00:06:25]} dxe5 {[%clk 01:23:38]} {[%emt 00:00:02]} 10.
dxc6 {[%clk 01:08:02]} {[%emt 00:00:12]} Qxd1+ {[%clk 01:23:20]} {[%emt
00:00:49]} 11. Bxd1 {[%clk 01:04:44]} {[%emt 00:03:48]} bxc6 {[%clk 01:23:33]}
{[%emt 00:00:17]} 12. Ba4 {[%clk 01:05:09]} {[%emt 00:00:06]} Bb7 {[%clk
01:13:54]} {[%emt 00:10:09]} 13. Nf3 {[%clk 00:33:00]} {[%emt 00:32:39]} Nd7
{[%clk 01:10:37]} {[%emt 00:03:46]} 14. O-O-O {[%clk 00:28:17]} {[%emt
00:05:13]} a5 {[%clk 01:01:53]} {[%emt 00:09:14]} 15. Bc2 {[%clk 00:26:06]}
{[%emt 00:02:41]} Ba6 {[%clk 00:58:16]} {[%emt 00:04:07]} 16. Na4 {[%clk
00:25:19]} {[%emt 00:01:17]} O-O-O {[%clk 00:55:08]} {[%emt 00:03:37]} 17. b3
{[%clk 00:21:06]} {[%emt 00:04:44]} Kc7 {[%clk 00:51:15]} {[%emt 00:04:23]} 18.
Kb1 {[%clk 00:18:45]} {[%emt 00:02:51]} f6 {[%clk 00:42:27]} {[%emt 00:09:17]}
19. Ne1 {[%clk 00:12:13]} {[%emt 00:07:02]} e6 {[%clk 00:35:58]} {[%emt
00:06:59]} 20. Nd3 {[%clk 00:12:11]} {[%emt 00:00:32]} Bh6 {[%clk 00:30:57]}
{[%emt 00:05:32]} 21. g3 {[%clk 00:08:15]} {[%emt 00:04:26]} Bc8 {[%clk
00:25:33]} {[%emt 00:05:53]} 22. f4 {[%clk 00:06:12]} {[%emt 00:02:33]} exf4
{[%clk 00:24:29]} {[%emt 00:01:33]} 23. Nxf4 {[%clk 00:06:22]} {[%emt
00:00:20]} Bxf4 {[%clk 00:23:20]} {[%emt 00:01:39]} 24. gxf4 {[%clk 00:06:51]}
{[%emt 00:00:02]} e5 {[%clk 00:20:02]} {[%emt 00:03:49]} 25. Rhf1 {[%clk
00:06:24]} {[%emt 00:00:56]} Rhf8 {[%clk 00:19:25]} {[%emt 00:01:06]} 26. f5
{[%clk 00:03:40]} {[%emt 00:03:15]} g5 {[%clk 00:18:44]} {[%emt 00:01:11]} 27.
c5 {[%clk 00:03:00]} {[%emt 00:01:10]} g4 {[%clk 00:14:44]} {[%emt 00:04:30]}
28. Bd3 {[%clk 00:02:47]} {[%emt 00:00:43]} Nb8 {[%clk 00:13:50]} {[%emt
00:01:23]} 29. Nb2 {[%clk 00:01:28]} {[%emt 00:01:49]} Ba6 {[%clk 00:12:46]}
{[%emt 00:01:34]} 30. Bc4 {[%clk 00:01:30]} {[%emt 00:00:28]} Rxd1+ {[%clk
00:10:23]} {[%emt 00:02:54]} 31. Rxd1 {[%clk 00:01:59]} {[%emt 00:00:01]} Rd8
{[%clk 00:10:30]} {[%emt 00:00:23]} 32. Rc1 {[%clk 00:00:46]} {[%emt 00:01:44]}
Rd2 {[%clk 00:05:18]} {[%emt 00:05:41]} 33. Bf7 {[%clk 00:01:14]} {[%emt
00:00:02]} Rh2 {[%clk 00:05:26]} {[%emt 00:00:21]} 34. Bxh5 {[%clk 00:01:10]}
{[%emt 00:00:34]} Rxh4 {[%clk 00:05:55]} {[%emt 00:00:01]} 35. Bf7 {[%clk
00:01:09]} {[%emt 00:00:31]} g3 {[%clk 00:06:23]} {[%emt 00:00:02]} 36. Rg1
{[%clk 00:01:31]} {[%emt 00:00:07]} Rg4 {[%clk 00:06:25]} {[%emt 00:00:29]} 37.
Bc4 {[%clk 00:01:10]} {[%emt 00:00:51]} Bxc4 {[%clk 00:04:10]} {[%emt
00:02:45]} 38. Nxc4 {[%clk 00:01:39]} Nd7 {[%clk 00:04:13]} {[%emt 00:00:27]}
39. Ne3 {[%clk 00:02:04]} {[%emt 00:00:05]} Rg5 {[%clk 00:03:47]} {[%emt
00:00:56]} 40. Nf1 {[%clk 00:02:22]} {[%emt 00:00:12]} Nxc5 {[%clk 00:03:02]}
{[%emt 00:01:16]} 41. Rxg3 {[%clk 00:02:47]} {[%emt 00:00:05]} Nxe4 {[%clk
00:03:06]} {[%emt 00:00:26]} 42. Rxg5 {[%clk 00:02:54]} {[%emt 00:00:23]} Nxg5
{[%clk 00:02:52]} {[%emt 00:00:43]} 43. Kc2 {[%clk 00:03:06]} {[%emt 00:00:18]}
Nf3 {[%clk 00:01:15]} {[%emt 00:02:07]} 44. Ne3 {[%clk 00:03:11]} {[%emt
00:00:25]} e4 {[%clk 00:01:12]} {[%emt 00:00:33]} 45. Kc3 {[%clk 00:02:28]}
{[%emt 00:01:13]} Kd6 {[%clk 00:00:57]} {[%emt 00:00:45]} 46. Nc4+ {[%clk
00:02:38]} {[%emt 00:00:20]} Kd5 {[%clk 00:01:11]} {[%emt 00:00:15]} 47. Nxa5
{[%clk 00:02:49]} {[%emt 00:00:20]} Nd4 {[%clk 00:01:26]} {[%emt 00:00:16]} 48.
Nc4 {[%clk 00:02:48]} {[%emt 00:00:30]} Nxf5 {[%clk 00:01:45]} {[%emt
00:00:11]} 49. a4 {[%clk 00:03:10]} {[%emt 00:00:09]} Nd6 {[%clk 00:01:17]}
{[%emt 00:00:58]} 50. Ne3+ {[%clk 00:01:35]} {[%emt 00:02:04]} Kc5 {[%clk
00:00:51]} {[%emt 00:00:55]} 51. b4+ {[%clk 00:01:51]} {[%emt 00:00:15]} Kb6
{[%clk 00:01:10]} {[%emt 00:00:10]} 52. Kd4 {[%clk 00:02:13]} {[%emt 00:00:08]}
Kc7 {[%clk 00:00:42]} {[%emt 00:00:59]} 53. b5 {[%clk 00:01:50]} {[%emt
00:00:53]} cxb5 {[%clk 00:00:54]} {[%emt 00:00:18]} 54. axb5 {[%clk 00:02:18]}
{[%emt 00:00:01]} Nxb5+ {[%clk 00:00:51]} {[%emt 00:00:33]} 55. Kxe4 {[%clk
00:02:47]} {[%emt 00:00:01]} Nd6+ {[%clk 00:00:52]} {[%emt 00:00:29]} 56. Kf4
{[%clk 00:03:15]} {[%emt 00:00:01]} Kd7 {[%clk 00:01:00]} {[%emt 00:00:22]} 57.
Ng4 {[%clk 00:03:31]} {[%emt 00:00:13]} Ke6 {[%clk 00:01:23]} {[%emt 00:00:07]}
58. Nxf6 {[%clk 00:03:56]} {[%emt 00:00:05]} Kxf6 {[%clk 00:01:41]} {[%emt
00:00:13]} 1/2-1/2

[Event "Klubbmästerskap 2025 Tisdag"]
[Site "Linköping, Sweden"]
[Date "2025.02.11"]
[Round "4.2"]
[White "Rogoz, Vladyslav"]
[Black "Carlsson, Ingvar"]
[Result "1-0"]
[TimeControl "90 min + 30 sec/move"]
[WhiteElo "2099"]
[BlackElo "1996"]

1. d4 {[%clk 01:30:57]} {[%emt 00:00:02]} Nf6 {[%clk 01:30:46]} {[%emt
00:00:15]} 2. c4 {[%clk 01:30:30]} {[%emt 00:00:58]} g6 {[%clk 01:31:02]}
{[%emt 00:00:13]} 3. Nc3 {[%clk 01:30:28]} {[%emt 00:00:32]} d5 {[%clk
01:31:15]} {[%emt 00:00:17]} 4. cxd5 {[%clk 01:30:15]} {[%emt 00:00:44]} Nxd5
{[%clk 01:31:36]} {[%emt 00:00:08]} 5. e4 {[%clk 01:30:30]} {[%emt 00:00:16]}
Nxc3 {[%clk 01:31:57]} {[%emt 00:00:08]} 6. bxc3 {[%clk 01:30:46]} {[%emt
00:00:14]} Bg7 {[%clk 01:32:09]} {[%emt 00:00:17]} 7. Bc4 {[%clk 01:30:34]}
{[%emt 00:00:43]} c5 {[%clk 01:32:17]} {[%emt 00:00:21]} 8. Ne2 {[%clk
01:26:18]} {[%emt 00:04:46]} Nc6 {[%clk 01:32:12]} {[%emt 00:00:36]} 9. Be3
{[%clk 01:26:34]} {[%emt 00:00:13]} O-O {[%clk 01:32:25]} {[%emt 00:00:17]} 10.
O-O {[%clk 01:26:51]} {[%emt 00:00:14]} Qc7 {[%clk 01:32:30]} {[%emt 00:00:25]}
11. Rc1 {[%clk 01:23:40]} {[%emt 00:03:41]} e6 {[%clk 01:31:37]} {[%emt
00:01:23]} 12. h4 {[%clk 01:23:00]} {[%emt 00:01:10]} b6 {[%clk 01:26:13]}
{[%emt 00:05:53]} 13. h5 {[%clk 01:22:55]} {[%emt 00:00:36]} Na5 {[%clk
01:26:27]} {[%emt 00:00:17]} 14. Bd3 {[%clk 01:22:56]} {[%emt 00:00:28]} Bb7
{[%clk 01:24:54]} {[%emt 00:02:03]} 15. h6 {[%clk 01:21:50]} {[%emt 00:01:36]}
Bf6 {[%clk 01:18:42]} {[%emt 00:06:41]} 16. e5 {[%clk 01:21:13]} {[%emt
00:01:08]} Be7 {[%clk 01:18:03]} {[%emt 00:01:09]} 17. Ng3 {[%clk 01:21:05]}
{[%emt 00:00:37]} f5 {[%clk 01:10:42]} {[%emt 00:07:51]} 18. exf6 {[%clk
01:21:01]} {[%emt 00:00:35]} Bxf6 {[%clk 01:10:59]} {[%emt 00:00:13]} 19. Qg4
{[%clk 01:21:04]} {[%emt 00:00:27]} Rae8 {[%clk 01:10:19]} {[%emt 00:01:10]} 20.
Nh5 {[%clk 01:20:15]} {[%emt 00:01:19]} Kh8 {[%clk 00:36:07]} {[%emt 00:34:42]}
21. Nxf6 {[%clk 01:19:12]} {[%emt 00:01:33]} Rxf6 {[%clk 00:34:43]} {[%emt
00:01:55]} 22. dxc5 {[%clk 01:18:59]} {[%emt 00:00:44]} bxc5 {[%clk 00:33:33]}
{[%emt 00:01:40]} 23. Qg5 {[%clk 01:17:40]} {[%emt 00:01:48]} Rf7 {[%clk
00:27:47]} {[%emt 00:06:16]} 24. Qxc5 {[%clk 01:10:44]} {[%emt 00:07:25]} Qxc5
{[%clk 00:13:22]} {[%emt 00:14:56]} 25. Bxc5 {[%clk 01:11:09]} {[%emt
00:00:06]} Nc6 {[%clk 00:12:56]} {[%emt 00:00:56]} 26. Rfe1 {[%clk 01:10:13]}
{[%emt 00:01:25]} Rd7 {[%clk 00:10:54]} {[%emt 00:02:32]} 27. Bc4 {[%clk
01:06:16]} {[%emt 00:04:27]} Nd8 {[%clk 00:09:50]} {[%emt 00:01:34]} 28. Bd4+
{[%clk 01:06:00]} {[%emt 00:00:46]} Kg8 {[%clk 00:10:02]} {[%emt 00:00:17]} 29.
Rb1 {[%clk 01:05:11]} {[%emt 00:01:19]} Kf7 {[%clk 00:07:09]} {[%emt 00:03:24]}
30. Re3 {[%clk 01:02:31]} {[%emt 00:03:09]} Rc7 {[%clk 00:06:12]} {[%emt
00:01:27]} 31. Bb3 {[%clk 01:02:22]} {[%emt 00:00:39]} Bc6 {[%clk 00:03:41]}
{[%emt 00:03:02]} 32. Be5 {[%clk 01:01:55]} {[%emt 00:00:56]} Rd7 {[%clk
00:03:30]} {[%emt 00:00:42]} 33. c4 {[%clk 01:01:43]} {[%emt 00:00:43]} Nb7
{[%clk 00:03:15]} {[%emt 00:00:45]} 34. Bd1 {[%clk 01:00:34]} {[%emt 00:01:38]}
Ke7 {[%clk 00:01:32]} {[%emt 00:02:12]} 35. Bg4 {[%clk 00:58:58]} {[%emt
00:02:06]} Nc5 {[%clk 00:01:18]} {[%emt 00:00:45]} 36. Bb2 {[%clk 00:55:54]}
{[%emt 00:03:34]} Rb7 {[%clk 00:00:56]} {[%emt 00:00:52]} 37. Re5 {[%clk
00:53:32]} {[%emt 00:02:51]} Nd3 {[%emt 00:00:58]} 1-0

[Event "Klubbmästerskap 2025 Tisdag"]
[Site "Linköping, Sweden"]
[Date "2025.02.11"]
[Round "4.3"]
[White "Grundel, Sam"]
[Black "Andersson, Mats 1960"]
[Result "1/2-1/2"]
[TimeControl "90 min + 30 sec/move"]
[BlackTitle "FM"]
[WhiteElo "2019"]
[BlackElo "2263"]

1. e4 {[%clk 01:30:55]} {[%emt 00:00:04]} c5 {[%clk 01:30:32]} {[%emt
00:00:29]} 2. Nf3 {[%clk 01:31:08]} {[%emt 00:00:17]} d6 {[%clk 01:30:44]}
{[%emt 00:00:18]} 3. d4 {[%clk 01:31:17]} {[%emt 00:00:20]} cxd4 {[%clk
01:30:52]} {[%emt 00:00:22]} 4. Nxd4 {[%clk 01:31:38]} {[%emt 00:00:10]} Nf6
{[%clk 01:31:13]} {[%emt 00:00:09]} 5. Nc3 {[%clk 01:31:53]} {[%emt 00:00:15]}
a6 {[%clk 01:27:11]} {[%emt 00:04:33]} 6. Bg5 {[%clk 01:30:22]} {[%emt
00:02:00]} e6 {[%clk 01:25:43]} {[%emt 00:01:57]} 7. f4 {[%clk 01:28:29]}
{[%emt 00:02:24]} h6 {[%clk 01:24:38]} {[%emt 00:01:35]} 8. Bh4 {[%clk
01:26:49]} {[%emt 00:02:10]} Qb6 {[%clk 01:24:47]} {[%emt 00:00:20]} 9. Qd2
{[%clk 01:21:35]} {[%emt 00:05:44]} Qxb2 {[%clk 01:24:59]} {[%emt 00:00:18]} 10.
Rb1 {[%clk 01:21:20]} {[%emt 00:00:45]} Qa3 {[%clk 01:25:20]} {[%emt 00:00:09]}
11. e5 {[%clk 01:17:23]} {[%emt 00:04:28]} dxe5 {[%clk 01:24:05]} {[%emt
00:01:43]} 12. fxe5 {[%clk 01:16:36]} {[%emt 00:01:18]} g5 {[%clk 01:24:07]}
{[%emt 00:00:27]} 13. Bg3 {[%clk 01:10:04]} {[%emt 00:07:01]} Nh5 {[%clk
01:18:41]} {[%emt 00:05:57]} 14. Bf2 {[%clk 01:05:18]} {[%emt 00:05:18]} Qa5
{[%clk 01:05:52]} {[%emt 00:13:18]} 15. Nb3 {[%clk 00:45:36]} {[%emt 00:20:13]}
Qxe5+ {[%clk 00:57:16]} {[%emt 00:09:05]} 16. Be2 {[%clk 00:45:27]} {[%emt
00:00:40]} Nc6 {[%clk 00:50:34]} {[%emt 00:07:12]} 17. O-O {[%clk 00:44:00]}
{[%emt 00:01:57]} Nf4 {[%clk 00:43:03]} {[%emt 00:08:00]} 18. Bf3 {[%clk
00:42:13]} {[%emt 00:02:19]} Qd6 {[%clk 00:29:46]} {[%emt 00:13:46]} 19. Bxc6+
{[%clk 00:35:04]} {[%emt 00:07:40]} Qxc6 {[%clk 00:26:42]} {[%emt 00:03:32]} 20.
Bd4 {[%clk 00:34:06]} {[%emt 00:01:29]} Rg8 {[%clk 00:24:22]} {[%emt 00:02:49]}
21. Na5 {[%clk 00:29:03]} {[%emt 00:05:34]} Qc7 {[%clk 00:20:47]} {[%emt
00:04:04]} 22. Ne4 {[%clk 00:25:56]} {[%emt 00:03:37]} Be7 {[%clk 00:20:33]}
{[%emt 00:00:44]} 23. Bf6 {[%clk 00:21:22]} {[%emt 00:05:04]} Rg6 {[%clk
00:14:39]} {[%emt 00:06:24]} 24. Bxe7 {[%clk 00:19:57]} {[%emt 00:01:56]} Qxe7
{[%clk 00:15:00]} {[%emt 00:00:09]} 25. Nc4 {[%clk 00:19:39]} {[%emt 00:00:48]}
e5 {[%clk 00:08:44]} {[%emt 00:06:45]} 26. Rb6 {[%clk 00:15:51]} {[%emt
00:04:15]} 1/2-1/2

[Event "Klubbmästerskap 2025 Tisdag"]
[Site "Linköping, Sweden"]
[Date "2025.02.11"]
[Round "4.4"]
[White "Thyberg, André"]
[Black "Malm, Simon 1995"]
[Result "1-0"]
[TimeControl "90 min + 30 sec/move"]
[WhiteElo "1961"]
[BlackElo "1976"]

1. e4 {[%clk 01:21:30]} {[%emt 00:09:29]} c6 {[%clk 01:30:19]} {[%emt
00:00:42]} 2. d4 {[%clk 01:21:53]} {[%emt 00:00:07]} d5 {[%clk 01:30:42]}
{[%emt 00:00:07]} 3. exd5 {[%clk 01:22:16]} {[%emt 00:00:07]} cxd5 {[%clk
01:31:04]} {[%emt 00:00:08]} 4. c4 {[%clk 01:22:41]} {[%emt 00:00:05]} Nf6
{[%clk 01:31:22]} {[%emt 00:00:12]} 5. Nc3 {[%clk 01:23:02]} {[%emt 00:00:09]}
Nc6 {[%clk 01:31:12]} {[%emt 00:00:40]} 6. Nf3 {[%clk 01:23:23]} {[%emt
00:00:09]} Bg4 {[%clk 01:30:17]} {[%emt 00:01:25]} 7. cxd5 {[%clk 01:23:40]}
{[%emt 00:00:13]} Nxd5 {[%clk 01:30:41]} {[%emt 00:00:06]} 8. Qb3 {[%clk
01:24:01]} {[%emt 00:00:09]} Bxf3 {[%clk 01:30:46]} {[%emt 00:00:25]} 9. gxf3
{[%clk 01:24:23]} {[%emt 00:00:07]} e6 {[%clk 01:31:10]} {[%emt 00:00:05]} 10.
Qxb7 {[%clk 01:24:38]} {[%emt 00:00:16]} Nxd4 {[%clk 01:31:32]} {[%emt
00:00:08]} 11. Bb5+ {[%clk 01:24:50]} {[%emt 00:00:18]} Nxb5 {[%clk 01:31:59]}
{[%emt 00:00:03]} 12. Qc6+ {[%clk 01:25:06]} {[%emt 00:00:14]} Ke7 {[%clk
01:32:23]} {[%emt 00:00:07]} 13. Qc5+ {[%clk 01:24:52]} {[%emt 00:00:44]} Qd6
{[%clk 01:31:31]} {[%emt 00:01:22]} 14. Qxb5 {[%clk 01:16:55]} {[%emt
00:08:27]} Nxc3 {[%clk 01:26:02]} {[%emt 00:05:58]} 15. Bg5+ {[%clk 01:07:55]}
{[%emt 00:09:30]} f6 {[%clk 01:24:47]} {[%emt 00:01:46]} 16. Qb7+ {[%clk
01:08:14]} {[%emt 00:00:11]} Qd7 {[%clk 01:24:57]} {[%emt 00:00:20]} 17. Qxa8
{[%clk 01:07:59]} {[%emt 00:00:45]} Nd5 {[%clk 00:15:22]} {[%emt 01:10:05]} 18.
Be3 {[%clk 01:01:58]} {[%emt 00:06:31]} Kf7 {[%clk 00:07:56]} {[%emt 00:07:56]}
19. O-O {[%clk 00:54:07]} {[%emt 00:08:21]} Nxe3 {[%clk 00:02:25]} {[%emt
00:06:02]} 20. fxe3 {[%clk 00:54:27]} {[%emt 00:00:10]} Bc5 {[%clk 00:01:03]}
{[%emt 00:01:52]} 21. Qxh8 {[%clk 00:54:05]} {[%emt 00:00:51]} Qd3 {[%clk
00:00:43]} {[%emt 00:00:50]} 22. Qc8 {[%clk 00:53:28]} {[%emt 00:01:07]} Bxe3+
{[%clk 00:00:36]} {[%emt 00:00:38]} 23. Kh1 {[%clk 00:53:49]} {[%emt 00:00:08]}
Bf4 {[%clk 00:00:33]} {[%emt 00:00:33]} 24. Qb7+ {[%clk 00:53:39]} {[%emt
00:00:40]} 1-0

[Event "Klubbmästerskap 2025 Tisdag"]
[Site "Linköping, Sweden"]
[Date "2025.02.11"]
[Round "4.5"]
[White "Pavlic, Oliver"]
[Black "Rosenbecker, Daniel"]
[Result "0-1"]
[TimeControl "90 min + 30 sec/move"]
[BlackTitle "CM"]
[WhiteElo "1950"]
[BlackElo "2110"]

1. d4 {[%clk 01:30:56]} {[%emt 00:00:03]} Nf6 {[%clk 01:29:39]} {[%emt
00:01:21]} 2. c4 {[%clk 01:31:15]} {[%emt 00:00:12]} c6 {[%clk 01:29:56]}
{[%emt 00:00:13]} 3. Nc3 {[%clk 01:31:30]} {[%emt 00:00:15]} d5 {[%clk
01:30:19]} {[%emt 00:00:07]} 4. e3 {[%clk 01:31:51]} {[%emt 00:00:08]} e6
{[%clk 01:29:37]} {[%emt 00:01:12]} 5. Nf3 {[%clk 01:32:09]} {[%emt 00:00:12]}
Nbd7 {[%clk 01:29:51]} {[%emt 00:00:17]} 6. Qc2 {[%clk 01:32:36]} {[%emt
00:00:03]} Bd6 {[%clk 01:29:06]} {[%emt 00:01:14]} 7. Bd3 {[%clk 01:32:52]}
{[%emt 00:00:15]} dxc4 {[%clk 01:28:49]} {[%emt 00:00:47]} 8. Bxc4 {[%clk
01:33:04]} {[%emt 00:00:18]} b5 {[%clk 01:28:38]} {[%emt 00:00:41]} 9. Bd3
{[%clk 01:33:14]} {[%emt 00:00:20]} Bb7 {[%clk 01:28:38]} {[%emt 00:00:30]} 10.
e4 {[%clk 01:32:28]} {[%emt 00:01:16]} e5 {[%clk 01:26:55]} {[%emt 00:02:12]}
11. O-O {[%clk 01:31:54]} {[%emt 00:01:04]} O-O {[%clk 01:22:33]} {[%emt
00:04:53]} 12. h3 {[%clk 01:32:21]} {[%emt 00:00:02]} a6 {[%clk 01:12:53]}
{[%emt 00:10:10]} 13. dxe5 {[%clk 01:26:11]} {[%emt 00:06:41]} Nxe5 {[%clk
01:12:52]} {[%emt 00:00:31]} 14. Nxe5 {[%clk 01:26:37]} {[%emt 00:00:03]} Bxe5
{[%clk 01:13:16]} {[%emt 00:00:07]} 15. a4 {[%clk 01:24:04]} {[%emt 00:03:03]}
Rc8 {[%clk 00:34:37]} {[%emt 00:39:09]} 16. Rd1 {[%clk 01:22:15]} {[%emt
00:02:19]} Qe7 {[%clk 00:33:53]} {[%emt 00:01:14]} 17. Be3 {[%clk 01:21:22]}
{[%emt 00:01:23]} c5 {[%clk 00:26:00]} {[%emt 00:08:24]} 18. Nd5 {[%clk
01:15:08]} {[%emt 00:06:44]} Nxd5 {[%clk 00:25:48]} {[%emt 00:00:42]} 19. exd5
{[%clk 01:15:36]} {[%emt 00:00:02]} g6 {[%clk 00:24:27]} {[%emt 00:01:51]} 20.
axb5 {[%clk 01:14:17]} {[%emt 00:01:48]} c4 {[%clk 00:24:44]} {[%emt 00:00:13]}
21. Be4 {[%clk 01:13:52]} {[%emt 00:00:55]} axb5 {[%clk 00:24:44]} {[%emt
00:00:30]} 22. Bf3 {[%clk 01:06:10]} {[%emt 00:08:11]} Qf6 {[%clk 00:20:33]}
{[%emt 00:04:41]} 23. Ra7 {[%clk 00:59:23]} {[%emt 00:07:17]} Ba8 {[%clk
00:20:47]} {[%emt 00:00:16]} 24. b3 {[%clk 00:59:25]} {[%emt 00:00:27]} Bd6
{[%clk 00:12:28]} {[%emt 00:08:49]} 25. bxc4 {[%clk 00:54:08]} {[%emt
00:05:47]} bxc4 {[%clk 00:12:35]} {[%emt 00:00:24]} 26. Qc1 {[%clk 00:44:25]}
{[%emt 00:10:12]} Bc5 {[%clk 00:07:22]} {[%emt 00:05:43]} 27. Bxc5 {[%clk
00:27:21]} {[%emt 00:17:35]} Rxc5 {[%clk 00:07:48]} {[%emt 00:00:05]} 28. Qe3
{[%clk 00:27:27]} {[%emt 00:00:23]} Rcc8 {[%clk 00:06:58]} {[%emt 00:01:20]} 29.
Bg4 {[%clk 00:25:46]} {[%emt 00:02:10]} Rcd8 {[%clk 00:07:11]} {[%emt
00:00:18]} 30. Qc5 {[%clk 00:25:00]} {[%emt 00:01:16]} Rfe8 {[%clk 00:05:13]}
{[%emt 00:02:28]} 31. Qxc4 {[%clk 00:24:32]} {[%emt 00:00:58]} Bxd5 {[%clk
00:05:34]} {[%emt 00:00:09]} 32. Rxd5 {[%clk 00:24:06]} {[%emt 00:00:55]} Rxd5
{[%clk 00:05:56]} {[%emt 00:00:08]} 33. Qxd5 {[%clk 00:24:30]} {[%emt
00:00:06]} Re1+ {[%clk 00:06:23]} {[%emt 00:00:03]} 0-1

[Event "Klubbmästerskap 2025 Tisdag"]
[Site "Linköping, Sweden"]
[Date "2025.02.11"]
[Round "4.6"]
[White "Jakobsson, Leif"]
[Black "Andersson, Albin"]
[Result "1-0"]
[TimeControl "90 min + 30 sec/move"]
[WhiteElo "1714"]
[BlackElo "1614"]

1. e4 {[%clk 01:30:53]} {[%emt 00:00:06]} e5 {[%clk 01:30:51]} {[%emt
00:00:10]} 2. Nf3 {[%clk 01:31:15]} {[%emt 00:00:07]} Nc6 {[%clk 01:31:14]}
{[%emt 00:00:08]} 3. Bc4 {[%clk 01:31:18]} {[%emt 00:00:27]} Bc5 {[%clk
01:31:21]} {[%emt 00:00:24]} 4. d3 {[%clk 01:27:22]} {[%emt 00:04:25]} Nf6
{[%clk 01:30:01]} {[%emt 00:01:51]} 5. O-O {[%clk 01:25:47]} {[%emt 00:02:05]}
d6 {[%clk 01:29:02]} {[%emt 00:01:29]} 6. c3 {[%clk 01:23:01]} {[%emt
00:03:16]} O-O {[%clk 01:24:15]} {[%emt 00:05:17]} 7. b4 {[%clk 01:20:44]}
{[%emt 00:02:46]} Bb6 {[%clk 01:24:28]} {[%emt 00:00:18]} 8. a4 {[%clk
01:17:50]} {[%emt 00:03:24]} a6 {[%clk 01:17:38]} {[%emt 00:07:20]} 9. Qb3
{[%clk 01:14:14]} {[%emt 00:04:05]} h6 {[%clk 01:10:50]} {[%emt 00:07:18]} 10.
Nh4 {[%clk 01:08:00]} {[%emt 00:06:43]} Nxe4 {[%clk 00:52:15]} {[%emt
00:19:06]} 11. Ng6 {[%clk 01:01:44]} {[%emt 00:06:46]} Nf6 {[%clk 00:50:05]}
{[%emt 00:02:41]} 12. Nxf8 {[%clk 00:57:36]} {[%emt 00:04:38]} d5 {[%clk
00:48:39]} {[%emt 00:01:56]} 13. Bxd5 {[%clk 00:50:55]} {[%emt 00:07:11]} Nxd5
{[%clk 00:43:50]} {[%emt 00:05:18]} 14. Ng6 {[%clk 00:40:27]} {[%emt 00:10:57]}
Be6 {[%clk 00:40:32]} {[%emt 00:03:49]} 15. Nxe5 {[%clk 00:35:10]} {[%emt
00:05:46]} Nxe5 {[%clk 00:38:19]} {[%emt 00:02:44]} 16. c4 {[%clk 00:35:01]}
{[%emt 00:00:38]} Nf6 {[%clk 00:36:16]} {[%emt 00:02:33]} 17. Ra3 {[%clk
00:28:13]} {[%emt 00:07:17]} Nfg4 {[%clk 00:29:57]} {[%emt 00:06:50]} 18. Qc2
{[%clk 00:23:30]} {[%emt 00:05:13]} Nxh2 {[%clk 00:17:17]} {[%emt 00:13:10]} 19.
Kxh2 {[%clk 00:19:31]} {[%emt 00:04:29]} Qh4+ {[%clk 00:16:58]} {[%emt
00:00:49]} 20. Kg1 {[%clk 00:19:49]} {[%emt 00:00:13]} Ng4 {[%clk 00:16:56]}
{[%emt 00:00:32]} 21. Bf4 {[%clk 00:19:45]} {[%emt 00:00:33]} Nxf2 {[%clk
00:15:58]} {[%emt 00:01:29]} 22. c5 {[%clk 00:18:25]} {[%emt 00:01:49]} Qxf4
{[%clk 00:13:16]} {[%emt 00:03:13]} 23. Rxf2 {[%clk 00:17:39]} {[%emt
00:01:16]} Qxb4 {[%clk 00:12:27]} {[%emt 00:01:19]} 24. cxb6 {[%clk 00:17:24]}
{[%emt 00:00:46]} cxb6 {[%clk 00:11:39]} {[%emt 00:01:19]} 25. Qb2 {[%clk
00:14:55]} {[%emt 00:02:58]} Qe1+ {[%clk 00:10:45]} {[%emt 00:01:24]} 26. Rf1
{[%clk 00:14:57]} {[%emt 00:00:27]} Qe3+ {[%clk 00:10:11]} {[%emt 00:01:04]} 27.
Qf2 {[%clk 00:14:48]} {[%emt 00:00:40]} Qc5 {[%clk 00:09:21]} {[%emt 00:01:19]}
28. Qxc5 {[%clk 00:14:16]} {[%emt 00:01:01]} bxc5 {[%clk 00:09:42]} {[%emt
00:00:10]} 29. Nc3 {[%clk 00:13:57]} {[%emt 00:00:50]} Rd8 {[%clk 00:08:59]}
{[%emt 00:01:13]} 30. Ne4 {[%clk 00:13:37]} {[%emt 00:00:49]} Rd5 {[%clk
00:08:20]} {[%emt 00:01:10]} 31. Rc1 {[%clk 00:13:00]} {[%emt 00:01:06]} c4
{[%clk 00:07:42]} {[%emt 00:01:09]} 32. dxc4 {[%clk 00:12:03]} {[%emt
00:01:27]} Rd4 {[%clk 00:07:50]} {[%emt 00:00:22]} 33. Nc5 {[%clk 00:11:31]}
{[%emt 00:01:01]} Bxc4 {[%clk 00:07:21]} {[%emt 00:00:59]} 34. Nxb7 {[%clk
00:11:34]} {[%emt 00:00:27]} Bd5 {[%clk 00:07:05]} {[%emt 00:00:46]} 35. Nc5
{[%clk 00:10:07]} {[%emt 00:01:56]} Rg4 {[%clk 00:06:38]} {[%emt 00:00:58]} 36.
Rc2 {[%clk 00:10:04]} {[%emt 00:00:32]} 1-0